bitfinex/quotes_BTCUSD_20220202
["timestamp","ask_amount","ask_price","bid_price","bid_amount"]
[1643817171537,0.53117227,37466.0,37465.0,8.428e-05]
[1643817171721,0.43667555,37466.0,37459.0,0.13359128]
[1643817171921,0.25162155,37466.0,37462.0,0.066753]
[1643817172322,0.25162155,37466.0,37462.0,0.06683728]
[1643817173070,0.25162155,37466.0,37464.0,0.33057066]
[1643817173266,0.20252155,37466.0,37464.0,0.33057066]
[1643817173470,0.13576155,37466.0,37464.0,0.33057066]
[1643817173770,0.13576155,37466.0,37463.0,0.13358028]
[1643817173968,0.38337047,37466.0,37463.0,0.133496]
[1643817174171,0.28474705,37461.0,37458.0,0.02095952]
[1643817174372,0.0491,37460.0,37458.0,0.02095952]
[1643817174573,0.5991,37459.0,37458.0,0.02095952]
[1643817174770,1.14119864,37458.0,37457.0,0.0011]
[1643817174968,1.54521135,37458.0,37457.0,0.0011]
[1643817175175,1.59521135,37458.0,37457.0,0.0011]
[1643817175768,1.76199735,37458.0,37457.0,0.0011]
[1643817176373,0.28350325,37452.0,37451.0,0.0011]
[1643817176569,0.0491,37452.0,37451.0,0.24431261]
[1643817176835,0.0491,37452.0,37451.0,0.0011]
[1643817177028,0.04880769,37452.0,37451.0,0.0011]
[1643817177930,0.04880769,37452.0,37451.0,0.25208903]
[1643817178333,0.04880769,37452.0,37451.0,0.61274614]
[1643817178532,0.33584778,37468.0,37453.0,0.066761]
[1643817178731,0.24141616,37470.0,37454.0,0.38320796]
[1643817178732,0.00057307,37460.0,37454.0,0.38320796]
[1643817178936,0.00057307,37460.0,37457.0,0.35517323]
[1643817179129,0.00057307,37460.0,37458.0,0.08828777]
[1643817179329,0.00057307,37460.0,37457.0,0.066762]
[1643817179530,0.35021775,37462.0,37457.0,0.066762]
[1643817180133,0.00057262,37460.0,37457.0,0.066762]
[1643817180763,0.182645,37460.0,37457.0,0.066762]
[1643817180964,0.04956927,37460.0,37457.0,0.066762]
[1643817181363,0.04956927,37460.0,37457.0,0.133531]
[1643817181364,0.00046927,37460.0,37457.0,0.133531]
[1643817181569,0.00046927,37460.0,37457.0,0.066762]
[1643817181966,0.250318,37461.0,37457.0,0.066762]
[1643817182165,0.250318,37461.0,37458.0,0.133518]
[1643817182166,0.00046927,37460.0,37458.0,0.133518]
[1643817182563,0.00046927,37460.0,37457.0,0.066762]
[1643817182968,0.00046927,37460.0,37456.0,0.133523]
[1643817183172,0.13579042,37456.0,37451.0,0.0011]
[1643817183369,0.18489042,37456.0,37454.0,0.00010329]
[1643817183867,0.18489042,37456.0,37455.0,0.0014]
[1643817184323,0.31846642,37456.0,37455.0,0.0014]
[1643817184718,0.81101928,37456.0,37455.0,0.0014]
[1643817184919,1.05,37455.0,37447.0,0.00041323]
[1643817185116,0.28985093,37448.0,37447.0,0.00041323]
[1643817185320,0.0491,37448.0,37442.0,0.23968208]
[1643817185517,0.00652237,37454.0,37443.0,0.39255286]
[1643817185717,0.10652237,37454.0,37443.0,0.48877142]
[1643817186017,0.10652237,37454.0,37443.0,0.39255286]
[1643817186218,0.28333658,37449.0,37446.0,0.20034053]
[1643817186417,0.3875839,37448.0,37446.0,0.133563]
[1643817186624,2.5823608,37446.0,37442.0,0.267148]
[1643817186818,2.5823608,37446.0,37442.0,0.133575]
[1643817187016,0.18104072,37445.0,37442.0,0.133575]
[1643817187617,0.18104072,37445.0,37441.0,0.01]
[1643817187817,0.30645412,37442.0,37441.0,0.01]
[1643817188271,0.30645412,37442.0,37441.0,0.01034311]
[1643817188670,0.29194933,37442.0,37441.0,0.01034311]
[1643817189072,0.37676183,37442.0,37441.0,0.01034311]
[1643817189275,0.37676183,37442.0,37441.0,0.01]
[1643817189276,0.44356183,37442.0,37441.0,0.01]
[1643817189472,0.43856183,37442.0,37441.0,0.01]
[1643817190272,0.43356183,37442.0,37441.0,0.00989204]
[1643817190773,0.92430151,37442.0,37441.0,0.00989204]
[1643817191074,0.92430151,37442.0,37437.0,0.002]
[1643817191075,1.0829643,37441.0,37437.0,0.002]
[1643817191273,0.03045426,37439.0,37437.0,0.002]
[1643817191481,0.865919,37438.0,37436.0,8.423e-05]
[1643817191675,1.34073968,37437.0,37436.0,8.423e-05]
[1643817191935,1.34073968,37437.0,37430.0,0.002]
[1643817191936,0.2547332,37435.0,37430.0,0.002]
[1643817192126,0.0491,37434.0,37431.0,0.00138423]
[1643817192728,0.115923,37434.0,37431.0,0.00138423]
[1643817192925,0.165923,37434.0,37428.0,0.00144423]
[1643817193127,0.215923,37434.0,37431.0,9.498e-05]
[1643817193427,0.17904062,37433.0,37431.0,9.498e-05]
[1643817193625,0.5991,37432.0,37431.0,9.498e-05]
[1643817193826,0.6491,37432.0,37431.0,9.498e-05]
[1643817194026,0.6491,37432.0,37428.0,0.00144423]
[1643817194027,0.6991,37432.0,37428.0,0.00144423]
[1643817194225,0.066833,37431.0,37430.0,9.499e-05]
[1643817194430,0.615933,37431.0,37430.0,3.499e-05]
[1643817194625,0.5208052,37431.0,37430.0,3.499e-05]
[1643817194828,0.115933,37431.0,37430.0,3.499e-05]
[1643817195227,0.115933,37431.0,37428.0,0.00144423]
[1643817195859,0.110933,37431.0,37428.0,0.00144423]
[1643817196060,0.110933,37431.0,37429.0,0.25453737]
[1643817196360,0.27323137,37436.0,37429.0,0.34630662]
[1643817196966,0.03045426,37439.0,37433.0,0.30459444]
[1643817196967,0.21149498,37439.0,37433.0,0.30459444]
[1643817197162,0.21149498,37439.0,37434.0,0.38915682]
[1643817197358,0.09744507,37438.0,37433.0,0.30459444]
[1643817197959,0.03045426,37439.0,37433.0,0.30459444]
[1643817198162,0.03045426,37439.0,37433.0,0.43818344]
[1643817198360,0.03045426,37439.0,37435.0,0.066795]
[1643817198560,0.29679935,37439.0,37435.0,0.066795]
[1643817198960,0.07585246,37436.0,37435.0,0.066795]
[1643817199166,0.07585246,37436.0,37431.0,0.133604]
[1643817199419,1.0,37432.0,37431.0,0.133604]
[1643817199623,1.0,37432.0,37431.0,1.283604]
[1643817200016,1.0,37432.0,37431.0,1.32888289]
[1643817200223,1.0,37432.0,37431.0,2.20315671]
[1643817200418,0.7504,37432.0,37431.0,2.63857777]
[1643817200616,0.7504,37432.0,37431.0,2.59211918]
[1643817200819,0.7504,37432.0,37431.0,2.8580087]
[1643817201016,0.7504,37432.0,37431.0,2.90449473]
[1643817201421,0.7504,37432.0,37431.0,2.80449473]
[1643817201818,0.00055511,37436.0,37432.0,1.05]
[1643817202024,0.00055511,37436.0,37435.0,1.2]
[1643817202226,0.42245688,37451.0,37435.0,1.700613]
[1643817202420,0.24782172,37451.0,37441.0,0.133562]
[1643817202619,0.24121154,37447.0,37442.0,0.13356]
[1643817203063,0.24121154,37447.0,37443.0,0.06678]
[1643817203458,0.37480154,37447.0,37442.0,0.13356]
[1643817203658,0.37480154,37447.0,37442.0,0.37968208]
[1643817203859,0.37480154,37447.0,37442.0,0.13356]
[1643817204058,0.3752698,37447.0,37442.0,0.13356]
[1643817204259,0.3752698,37447.0,37440.0,0.066796]
[1643817204460,0.7782748,37447.0,37439.0,0.01986219]
[1643817204658,0.13405826,37447.0,37439.0,0.01986219]
[1643817204864,0.23109822,37447.0,37439.0,0.01986219]
[1643817205057,0.05,37447.0,37438.0,0.44924861]
[1643817205259,0.00046826,37445.0,37438.0,0.133588]
[1643817205459,0.00046826,37445.0,37440.0,0.066796]
[1643817205660,0.00046826,37445.0,37440.0,0.33279062]
[1643817206061,0.18109822,37451.0,37442.0,0.24443898]
[1643817206260,0.13359,37448.0,37443.0,0.36540323]
[1643817206463,0.066787,37449.0,37443.0,0.36540323]
[1643817206464,0.00046826,37444.0,37443.0,0.36540323]
[1643817206659,0.00046826,37444.0,37442.0,0.24443898]
[1643817207314,0.066787,37446.0,37440.0,0.26599462]
[1643817207518,0.066787,37446.0,37440.0,8.412e-05]
[1643817207519,0.00056883,37445.0,37440.0,8.412e-05]
[1643817208113,0.00056883,37445.0,37435.0,0.42311011]
[1643817208514,0.25308034,37445.0,37442.0,0.29383867]
[1643817208714,0.30308034,37445.0,37436.0,8.412e-05]
[1643817208914,0.00056043,37442.0,37436.0,0.37640344]
[1643817209114,0.00056043,37442.0,37438.0,0.066792]
[1643817209713,0.066792,37443.0,37438.0,0.26752903]
[1643817209916,0.066792,37443.0,37438.0,0.26761315]
[1643817210662,0.05,37443.0,37438.0,0.26752903]
[1643817210862,0.05,37448.0,37438.0,0.26752903]
[1643817211067,0.05,37450.0,37438.0,0.26752903]
[1643817211262,0.20505975,37447.0,37442.0,0.24632182]
[1643817211464,0.20505975,37447.0,37442.0,0.07578083]
[1643817211667,0.06679,37446.0,37439.0,8.412e-05]
[1643817212066,0.06679,37446.0,37438.0,0.26752903]
[1643817212263,0.06679,37446.0,37438.0,0.33431603]
[1643817212463,0.00056864,37444.0,37438.0,0.26752903]
[1643817212670,0.066794,37443.0,37440.0,0.2244651]
[1643817212864,0.066794,37443.0,37438.0,0.26761315]
[1643817213067,0.066794,37443.0,37438.0,8.412e-05]
[1643817213266,0.066794,37443.0,37437.0,8.412e-05]
[1643817213465,0.061794,37443.0,37437.0,8.412e-05]
[1643817213668,0.00052567,37442.0,37437.0,8.412e-05]
[1643817213866,0.26584293,37440.0,37435.0,8.412e-05]
[1643817214069,0.30060219,37438.0,37435.0,8.412e-05]
[1643817214322,0.066802,37439.0,37435.0,8.412e-05]
[1643817214519,0.066802,37439.0,37428.0,1.38304423]
[1643817214520,0.066802,37439.0,37428.0,0.00144423]
[1643817214722,0.066802,37439.0,37433.0,0.0003367]
[1643817214922,0.00052568,37438.0,37433.0,0.0003367]
[1643817215426,0.06681,37436.0,37433.0,0.0003367]
[1643817215820,0.06681,37436.0,37428.0,0.00144423]
[1643817215821,0.11591,37436.0,37428.0,0.00144423]
[1643817216020,0.23597208,37432.0,37431.0,9.47e-05]
[1643817216222,0.11591,37436.0,37431.0,9.47e-05]
[1643817216422,0.06681,37436.0,37431.0,9.47e-05]
[1643817216622,0.11681,37436.0,37431.0,9.47e-05]
[1643817216821,0.06681,37436.0,37431.0,9.47e-05]
[1643817217022,0.06681,37436.0,37428.0,0.08779556]
[1643817217225,0.27433568,37432.0,37428.0,0.08779556]
[1643817217425,0.066814,37431.0,37428.0,0.00144423]
[1643817217824,0.133628,37435.0,37428.0,0.00144423]
[1643817218065,0.05,37436.0,37428.0,0.00144423]
[1643817218262,0.26781156,37435.0,37428.0,0.00144423]
[1643817218461,0.26225371,37432.0,37428.0,0.00144423]
[1643817218662,0.066816,37431.0,37428.0,0.00144423]
[1643817218863,0.066816,37431.0,37430.0,0.54286168]
[1643817219064,0.05,37432.0,37430.0,0.54286168]
[1643817219265,0.05,37434.0,37430.0,0.54286168]
[1643817219666,0.5,37438.0,37430.0,0.54286168]
[1643817219667,0.05,37437.0,37430.0,0.54286168]
[1643817219866,0.00056838,37436.0,37432.0,0.20579043]
[1643817220070,0.5,37438.0,37433.0,0.45]
[1643817220071,0.49056838,37438.0,37433.0,0.45]
[1643817220265,0.066805,37437.0,37433.0,0.45]
[1643817220465,0.066805,37437.0,37436.0,0.10357289]
[1643817220675,0.35737338,37438.0,37436.0,0.10357289]
[1643817220864,0.39256975,37438.0,37436.0,0.09857289]
[1643817221067,0.36471022,37439.0,37436.0,0.09857289]
[1643817221266,0.183612,37439.0,37436.0,0.09857289]
[1643817221465,0.066805,37437.0,37436.0,0.09857289]
[1643817221913,0.066805,37437.0,37432.0,0.20579043]
[1643817222310,0.066805,37437.0,37432.0,0.22592433]
[1643817223216,0.066805,37437.0,37432.0,0.0201339]
[1643817224414,0.066805,37437.0,37433.0,0.00033566]
[1643817225415,0.066805,37437.0,37431.0,0.07361734]
[1643817225670,0.066805,37437.0,37433.0,0.00033566]
[1643817225872,0.115905,37437.0,37433.0,0.00033566]
[1643817226069,0.40025039,37437.0,37433.0,0.00033566]
[1643817226470,0.24968409,37436.0,37433.0,0.00033566]
[1643817226670,0.24968409,37436.0,37428.0,0.00144423]
[1643817226870,0.26436167,37429.0,37428.0,0.00144423]
[1643817227470,0.31436167,37429.0,37428.0,0.00144423]
[1643817227771,0.066828,37429.0,37428.0,0.00144423]
[1643817228870,0.32660201,37429.0,37428.0,0.00144423]
[1643817230013,0.67660201,37429.0,37428.0,0.00144423]
[1643817230410,1.22570201,37429.0,37428.0,0.00144423]
[1643817230609,0.35,37428.0,37427.0,0.00043237]
[1643817230808,0.5,37427.0,37426.0,0.00308353]
[1643817231012,0.5491,37427.0,37426.0,0.00308353]
[1643817231214,0.7,37425.0,37424.0,0.0051]
[1643817231412,0.3,37424.0,37421.0,0.01419196]
[1643817231609,0.3491,37424.0,37421.0,0.013]
[1643817232009,0.22837797,37423.0,37421.0,0.00909308]
[1643817232208,0.27949731,37422.0,37421.0,0.00909308]
[1643817232412,0.29724031,37422.0,37421.0,0.00909308]
[1643817232610,0.84634031,37422.0,37421.0,0.00909308]
[1643817233266,1.11731375,37422.0,37421.0,0.00909308]
[1643817233465,1.38656623,37422.0,37421.0,0.00909308]
[1643817233865,1.43656623,37422.0,37421.0,0.00909308]
[1643817234063,1.48656623,37422.0,37421.0,0.00909308]
[1643817234464,1.38656623,37422.0,37421.0,0.00787574]
[1643817234665,0.93449457,37422.0,37421.0,0.00787574]
[1643817235464,1.11569518,37422.0,37421.0,0.00787574]
[1643817235667,1.19580972,37422.0,37421.0,0.00787574]
[1643817236064,1.37701033,37422.0,37421.0,0.00787574]
[1643817236268,1.47701033,37422.0,37421.0,0.00787574]
[1643817238013,0.79714361,37422.0,37421.0,0.00795115]
[1643817238215,0.615943,37422.0,37421.0,0.00795115]
[1643817238822,0.915943,37422.0,37421.0,0.00795115]
[1643817239017,1.015943,37422.0,37421.0,0.00795115]
[1643817239213,0.715943,37422.0,37421.0,0.00795115]
[1643817239415,1.30746231,37422.0,37421.0,0.00795115]
[1643817239616,0.88300887,37422.0,37421.0,0.00795115]
[1643817239821,0.566843,37422.0,37421.0,0.95795115]
[1643817240217,0.066843,37422.0,37421.0,0.95795115]
[1643817241464,0.066822,37425.0,37421.0,1.34450417]
[1643817241663,0.066822,37425.0,37421.0,0.95795115]
[1643817242059,0.066822,37425.0,37424.0,0.21301491]
[1643817242260,0.066822,37425.0,37421.0,0.00795115]
[1643817242459,0.066822,37425.0,37421.0,0.00026486]
[1643817243159,0.20249448,37422.0,37421.0,0.00026486]
[1643817243365,0.26933348,37422.0,37421.0,0.00026486]
[1643817243561,0.49234529,37422.0,37416.0,0.607086]
[1643817243760,0.49234529,37422.0,37420.0,0.0002708]
[1643817243963,0.26933348,37422.0,37420.0,0.0002708]
[1643817244616,0.066839,37422.0,37420.0,0.0002708]
[1643817244817,0.066839,37422.0,37419.0,0.00027081]
[1643817245617,0.31983813,37422.0,37419.0,0.00027081]
[1643817245820,0.066839,37422.0,37418.0,0.49767043]
[1643817246019,0.066839,37422.0,37416.0,0.607086]
[1643817246217,0.066839,37422.0,37419.0,0.00027081]
[1643817247119,0.22542899,37421.0,37417.0,0.25092671]
[1643817247417,0.22542899,37421.0,37416.0,0.60716949]
[1643817247820,0.22542899,37421.0,37416.0,0.18716949]
[1643817248268,0.066839,37422.0,37416.0,0.18716949]
[1643817248469,0.066839,37422.0,37416.0,0.48076341]
[1643817248670,0.066839,37422.0,37416.0,0.54759441]
[1643817249276,0.066839,37422.0,37416.0,0.61442241]
[1643817249473,0.066839,37422.0,37418.0,0.10276779]
[1643817250070,0.066839,37422.0,37417.0,8.349e-05]
[1643817250271,0.066839,37422.0,37416.0,0.32082849]
[1643817250971,0.066839,37422.0,37417.0,0.00032974]
[1643817251170,0.33492236,37422.0,37418.0,0.28374896]
[1643817251370,0.33492236,37422.0,37417.0,0.07421679]
[1643817251571,0.33492236,37422.0,37417.0,0.00041323]
[1643817252017,0.38492236,37422.0,37418.0,0.00032974]
[1643817252216,0.43492236,37422.0,37418.0,0.00041323]
[1643817252816,0.066839,37422.0,37418.0,0.00032974]
[1643817253015,0.066839,37422.0,37417.0,8.349e-05]
[1643817253417,0.066839,37422.0,37416.0,0.27222162]
[1643817253418,0.066839,37422.0,37418.0,0.00032973]
[1643817253917,0.066839,37422.0,37421.0,0.47120132]
[1643817254120,0.45453296,37422.0,37418.0,0.00032973]
[1643817254324,0.51074004,37422.0,37417.0,8.349e-05]
[1643817254517,0.51074004,37422.0,37420.0,0.00026972]
[1643817254717,0.116839,37422.0,37420.0,0.00026972]
[1643817255119,0.57330284,37421.0,37420.0,0.00026972]
[1643817255317,0.36328012,37421.0,37420.0,0.00026972]
[1643817255562,0.36328012,37421.0,37417.0,8.349e-05]
[1643817255961,0.36328012,37421.0,37416.0,0.18716949]
[1643817256162,0.066842,37420.0,37416.0,0.18716949]
[1643817257363,0.32058209,37417.0,37416.0,0.18716949]
[1643817257563,0.32058209,37417.0,37416.0,0.187086]
[1643817258263,0.066848,37417.0,37416.0,0.187086]
[1643817258563,0.066848,37417.0,37416.0,0.182086]
[1643817258967,0.116848,37417.0,37416.0,0.182086]
[1643817259166,0.35010611,37417.0,37410.0,0.00536949]
[1643817259421,0.2991,37416.0,37415.0,0.00032961]
[1643817259614,0.0491,37416.0,37415.0,0.00032961]
[1643817260017,0.066848,37417.0,37415.0,0.00032961]
[1643817260219,0.5,37419.0,37415.0,0.00032961]
[1643817260416,0.5,37419.0,37413.0,8.35e-05]
[1643817260617,0.5,37419.0,37414.0,0.00032962]
[1643817260815,0.2305458,37417.0,37414.0,0.00032962]
[1643817261615,0.2305458,37417.0,37413.0,8.35e-05]
[1643817261815,0.24189307,37414.0,37410.0,0.26154764]
[1643817262019,0.066845,37413.0,37410.0,0.00545299]
[1643817262218,0.066845,37413.0,37412.0,0.133668]
[1643817263292,0.066845,37413.0,37411.0,0.00041315]
[1643817263491,0.066845,37413.0,37411.0,0.00032965]
[1643817264094,0.066845,37413.0,37410.0,0.00545299]
[1643817264095,0.066845,37413.0,37410.0,0.00570847]
[1643817264992,0.10330222,37411.0,37410.0,0.00570847]
[1643817265195,0.066845,37413.0,37410.0,0.00536949]
[1643817265391,0.25890231,37411.0,37410.0,0.00536949]
[1643817265594,0.066845,37413.0,37410.0,0.00536949]
[1643817266295,0.066845,37413.0,37411.0,0.10141742]
[1643817266503,0.066845,37413.0,37410.0,0.00536949]
[1643817266701,0.0491,37412.0,37410.0,0.00536949]
[1643817266915,0.25070058,37412.0,37410.0,0.00536949]
[1643817267124,0.30070058,37412.0,37410.0,0.00536949]
[1643817267415,0.45,37409.0,37408.0,0.0031]
[1643817267618,0.35,37408.0,37405.0,0.0039]
[1643817267818,0.0491,37407.0,37405.0,0.0039]
[1643817268319,0.21485359,37406.0,37405.0,0.0039]
[1643817268719,0.23029149,37410.0,37405.0,0.0039]
[1643817269022,0.218,37413.0,37412.0,1.06105483]
[1643817269023,0.0995371,37413.0,37412.0,1.06105483]
[1643817269221,0.5907062,37421.0,37413.0,1.05]
[1643817269222,0.20016,37421.0,37413.0,1.05]
[1643817269426,0.1,37421.0,37414.0,0.38324924]
[1643817269723,0.1,37421.0,37419.0,0.48059506]
[1643817269921,0.31108642,37429.0,37420.0,0.0925828]
[1643817270118,0.31108642,37429.0,37421.0,0.36556594]
[1643817270318,0.31108642,37429.0,37421.0,0.133637]
[1643817270773,0.26580653,37423.0,37421.0,0.133637]
[1643817270974,0.33264153,37423.0,37421.0,0.133637]
[1643817271177,0.23519788,37418.0,37414.0,0.799]
[1643817271374,0.23519788,37418.0,37413.0,0.40654815]
[1643817271574,0.07981651,37415.0,37413.0,0.066844]
[1643817271776,0.07981651,37415.0,37410.0,0.133691]
[1643817271777,0.2772331,37415.0,37410.0,0.133691]
[1643817271973,0.2772331,37415.0,37413.0,0.001]
[1643817271974,0.3263331,37415.0,37413.0,0.001]
[1643817272174,0.25458659,37415.0,37413.0,0.067852]
[1643817272377,0.0491,37415.0,37413.0,0.067852]
[1643817272776,0.0491,37415.0,37413.0,0.0008]
[1643817272777,0.38719239,37414.0,37413.0,0.0008]
[1643817272976,0.43727079,37414.0,37413.0,0.0008]
[1643817273174,0.43727079,37414.0,37407.0,0.00131619]
[1643817273175,1.25171009,37414.0,37407.0,0.00131619]
[1643817273375,1.25171009,37414.0,37407.0,0.00111619]
[1643817273376,0.06687,37412.0,37407.0,0.00111619]
[1643817273576,0.30606758,37411.0,37405.0,0.070767]
[1643817273775,0.30606758,37411.0,37408.0,0.133528]
[1643817273975,0.26015425,37410.0,37408.0,0.133528]
[1643817274178,0.0491,37409.0,37408.0,0.133328]
[1643817274424,0.0491,37409.0,37408.0,0.133128]
[1643817274425,0.04506,37409.0,37408.0,0.133128]
[1643817274929,0.04506,37409.0,37408.0,0.132728]
[1643817275326,0.04506,37409.0,37408.0,0.132528]
[1643817275626,0.04506,37409.0,37408.0,0.132328]
[1643817275825,0.04506,37409.0,37408.0,0.132128]
[1643817276030,0.04506,37409.0,37408.0,0.73231542]
[1643817276233,0.133725,37410.0,37408.0,0.73231542]
[1643817276430,0.066862,37411.0,37409.0,0.1686341]
[1643817276630,0.066862,37411.0,37409.0,0.133501]
[1643817277029,0.066862,37411.0,37410.0,1.22315545]
[1643817277232,0.1,37419.0,37410.0,1.32472509]
[1643817277439,0.200568,37420.0,37416.0,0.1970155]
[1643817277633,0.200568,37420.0,37417.0,0.10011652]
[1643817277832,0.00056497,37423.0,37416.0,0.33664414]
[1643817278073,0.00056497,37423.0,37417.0,0.39375251]
[1643817278272,0.00056497,37423.0,37417.0,0.35673633]
[1643817278472,0.066825,37426.0,37424.0,0.08148246]
[1643817278670,0.63222929,37429.0,37425.0,0.59280955]
[1643817278671,0.24168309,37429.0,37425.0,0.59280955]
[1643817278871,0.01845267,37430.0,37425.0,0.59280955]
[1643817279070,0.01845267,37430.0,37425.0,0.32100012]
[1643817279270,0.01845267,37430.0,37425.0,0.22741832]
[1643817279572,0.01845267,37430.0,37427.0,0.06681789]
[1643817279770,0.01845267,37430.0,37427.0,0.13363089]
[1643817280074,0.26956303,37428.0,37427.0,0.13363089]
[1643817280369,0.26956303,37428.0,37427.0,0.066813]
[1643817280971,0.66878479,37428.0,37427.0,0.066813]
[1643817281169,0.66878479,37428.0,37425.0,0.133626]
[1643817281372,0.066838,37427.0,37425.0,0.133626]
[1643817281573,0.056838,37427.0,37425.0,0.133626]
[1643817282020,0.056838,37427.0,37425.0,0.20044912]
[1643817282422,0.056838,37427.0,37426.0,0.3551048]
[1643817282823,0.056838,37427.0,37426.0,0.066828]
[1643817283021,0.056838,37427.0,37425.0,0.133626]
[1643817283220,0.056838,37427.0,37424.0,0.13137906]
[1643817283719,0.056838,37427.0,37425.0,0.28906119]
[1643817284122,0.056838,37427.0,37425.0,0.42268719]
[1643817286681,0.056838,37427.0,37425.0,0.51692467]
[1643817287485,0.056838,37427.0,37425.0,0.42268719]
[1643817287688,0.056838,37427.0,37425.0,0.133626]
[1643817287891,0.056838,37427.0,37423.0,0.066843]
[1643817288585,0.28188112,37425.0,37424.0,0.08728186]
[1643817288787,0.28188112,37425.0,37420.0,0.133681]
[1643817288788,0.93054194,37425.0,37420.0,0.133681]
[1643817288989,0.93054194,37425.0,37414.0,8.264e-05]
[1643817288990,0.1,37422.0,37414.0,8.264e-05]
[1643817289185,0.35827562,37421.0,37413.0,8.264e-05]
[1643817289623,0.26154111,37417.0,37413.0,0.25569942]
[1643817289821,0.115955,37416.0,37415.0,0.36953806]
[1643817290021,0.110955,37416.0,37415.0,0.36953806]
[1643817291426,0.066855,37416.0,37415.0,0.36953806]
[1643817291623,0.133674,37421.0,37416.0,0.80373623]
[1643817291826,0.18121526,37426.0,37417.0,0.55259808]
[1643817291827,0.1,37425.0,37417.0,0.55259808]
[1643817292022,0.18121526,37426.0,37418.0,0.2745092]
[1643817292223,0.24158632,37431.0,37421.0,0.37873224]
[1643817292224,0.16986864,37430.0,37421.0,0.37873224]
[1643817292425,0.24158632,37431.0,37427.0,0.08865062]
[1643817292626,0.133646,37429.0,37421.0,0.13365]
[1643817292824,0.06907604,37423.0,37421.0,0.13365]
[1643817293071,0.13590604,37423.0,37422.0,0.23235009]
[1643817293469,0.06907604,37423.0,37422.0,0.31285991]
[1643817293868,0.4459779,37437.0,37423.0,0.75]
[1643817294168,0.066815,37433.0,37424.0,0.066821]
[1643817294368,0.066815,37433.0,37425.0,0.39962951]
[1643817294568,0.066815,37433.0,37425.0,0.71484819]
[1643817294772,0.00046654,37432.0,37425.0,0.39962951]
[1643817294968,0.00046654,37432.0,37427.0,0.13362946]
[1643817295165,0.00046654,37432.0,37427.0,0.23477991]
[1643817295368,0.066815,37433.0,37427.0,0.23477991]
[1643817295766,0.00046654,37431.0,37427.0,0.23477991]
[1643817295967,0.00046654,37431.0,37428.0,0.31530214]
[1643817296570,0.066815,37433.0,37429.0,0.10137751]
[1643817296830,0.05,37436.0,37429.0,0.10137751]
[1643817296831,0.066815,37431.0,37429.0,0.066816]
[1643817297032,0.06737954,37431.0,37429.0,0.066816]
[1643817297230,0.06737954,37431.0,37429.0,0.133628]
[1643817298033,0.061815,37431.0,37429.0,0.133628]
[1643817298235,0.061815,37431.0,37430.0,0.25434968]
[1643817298432,0.061815,37431.0,37429.0,0.133628]
[1643817298433,0.061815,37431.0,37429.0,0.066816]
[1643817298632,0.061815,37431.0,37427.0,0.06683]
[1643817298832,0.061815,37431.0,37427.0,0.133653]
[1643817299033,0.061815,37431.0,37427.0,0.128653]
[1643817299230,0.06237901,37431.0,37427.0,0.128653]
[1643817299430,0.06237901,37431.0,37427.0,0.36999372]
[1643817299931,0.06237901,37431.0,37428.0,0.14635649]
[1643817300338,0.061815,37431.0,37428.0,0.14635649]
[1643817300572,0.06237901,37431.0,37428.0,0.14635649]
[1643817301371,0.13363,37434.0,37429.0,0.066816]
[1643817301574,0.13363,37434.0,37429.0,0.750434]
[1643817301779,0.62929941,37442.0,37438.0,0.35338759]
[1643817301780,0.43771309,37442.0,37438.0,0.35338759]
[1643817301976,0.066812,37441.0,37438.0,0.35338759]
[1643817302178,0.066812,37441.0,37439.0,0.27788968]
[1643817302575,0.134587,37446.0,37440.0,0.67895914]
[1643817302777,0.001,37446.0,37440.0,0.67895914]
[1643817302972,0.02146129,37442.0,37440.0,0.74574814]
[1643817303378,0.066791,37444.0,37441.0,0.36777171]
[1643817303573,0.001,37446.0,37442.0,0.35]
[1643817304173,0.0002,37443.0,37442.0,0.35]
[1643817304429,0.0002,37443.0,37442.0,0.69433828]
[1643817304830,0.0002,37443.0,37442.0,0.78629371]
[1643817305032,0.0002,37443.0,37442.0,0.7869162]
[1643817305230,0.0002,37443.0,37442.0,0.78895616]
[1643817305428,0.0002,37443.0,37442.0,0.79236454]
[1643817305631,0.0002,37443.0,37442.0,0.69433828]
[1643817306033,0.0002,37443.0,37442.0,0.35]
[1643817306229,0.0002,37443.0,37441.0,0.066788]
[1643817306630,0.0002,37443.0,37440.0,0.200367]
[1643817306832,0.0002,37443.0,37439.0,0.133581]
[1643817307633,0.0002,37443.0,37439.0,0.267163]
[1643817307831,0.00076424,37443.0,37440.0,0.09292522]
[1643817308076,0.00076424,37443.0,37440.0,0.18617789]
[1643817308273,0.00076424,37443.0,37442.0,0.1038266]
[1643817308473,0.00076424,37443.0,37440.0,0.15971522]
[1643817308679,0.0002,37443.0,37442.0,0.10270124]
[1643817308877,0.0002,37443.0,37441.0,0.24093114]
[1643817309078,0.18767121,37454.0,37442.0,1.14712348]
[1643817309079,0.00652237,37454.0,37442.0,1.14712348]
[1643817309274,0.00652237,37454.0,37444.0,0.066778]
[1643817309476,0.00652237,37454.0,37444.0,0.16591239]
[1643817309976,0.00652237,37454.0,37447.0,0.066776]
[1643817310177,0.00652237,37454.0,37448.0,1.20507327]
[1643817310377,0.00652237,37454.0,37449.0,0.066765]
[1643817310576,0.00652237,37454.0,37451.0,0.10109895]
[1643817311178,0.00652237,37454.0,37452.0,0.0983801]
[1643817311375,0.00652237,37454.0,37450.0,0.064771]
[1643817311576,0.00652237,37454.0,37452.0,0.066767]
[1643817312022,0.00652237,37454.0,37452.0,0.16005882]
[1643817312222,0.00652237,37454.0,37452.0,0.066767]
[1643817312423,0.21186116,37453.0,37452.0,0.064767]
[1643817312626,0.88489015,37453.0,37450.0,0.064771]
[1643817312824,0.0491,37452.0,37450.0,0.064771]
[1643817313022,0.3827508,37451.0,37447.0,0.133581]
[1643817313224,0.1,37448.0,37439.0,0.133595]
[1643817313424,0.1,37448.0,37440.0,0.20431572]
[1643817313425,1.10537057,37446.0,37440.0,0.20431572]
[1643817313622,1.15447057,37446.0,37441.0,0.23924554]
[1643817313827,1.48561941,37446.0,37441.0,0.23924554]
[1643817314025,0.48561941,37446.0,37443.0,0.133592]
[1643817314425,0.35447057,37446.0,37443.0,0.132692]
[1643817314627,0.30447057,37446.0,37443.0,0.132692]
[1643817314826,0.1,37445.0,37443.0,0.132692]
[1643817315127,0.07966986,37444.0,37443.0,0.130692]
[1643817315326,0.50698809,37444.0,37443.0,0.130692]
[1643817315597,0.50698809,37444.0,37436.0,0.00025708]